Cogmind - Beta 15 @@@ ROGUE MODE // 2025.10.06 @ 19:02:40 Player: DietSnapple Result: Self-destructed Performance ------------- Evolutions (2) 1000 Regions Visited (5) 1000 Robots Destroyed (44) 220 Value Destroyed (919) 919 Prototype IDs (1) 20 Alien Tech Used (0) 0 Bonus (-6) -6 TOTAL SCORE: 3153 Bonus ------- Friendly Fire -6 Cogmind --------- Core Integrity 399/550 Matter 16/300 Energy 16/100 System Corruption 0% Temperature Cool (0) Movement Flying (29) Location -8/Materials Parts ------- > --- POWER (1) -------- (None) > --- PROPULSION (3) --- Surge Thruster Surge Thruster Surge Thruster > --- UTILITY (5) ------ Utility Shielding Improved Light Armor Plating Hacking Suite Hacking Suite > --- WEAPON (2) ------- Spread Laser > --- INVENTORY (5) ---- Improved Ion Engine Light Nuclear Core Cesium-ion Thruster Improved Light Armor Plating Grenade Launcher Peak State ------------ > --- POWER ------------ Light Nuclear Core > --- PROPULSION ------- Surge Thruster Surge Thruster Surge Thruster > --- UTILITY ---------- Improved Sensor Array Utility Shielding Improved Light Armor Plating Hacking Suite Hacking Suite > --- WEAPON ----------- (None) > --- INVENTORY -------- Improved Ion Engine Light Treads Improved Flight Unit Improved Light Armor Plating Grenade Launcher [Rating: 26] Favorites ----------- Power Ion Engine Engine Ion Engine Power Core Light Nuclear Core Propulsion Light Treads Treads Light Treads Wheel Wheel Flight Unit Flight Unit Utility Hacking Suite Device Improved Sensor Array Storage Small Storage Unit Hackware Hacking Suite Protection Utility Shielding Weapon Particle Gun Energy Gun Particle Gun Ballistic Gun Light Assault Rifle Ballistic Cannon Battle Cannon Launcher Grenade Launcher Special Melee Weapon Datajack Build | -11 -10 -10 -10 -9 -8 ------- Run | Yrd Mat Min Exi Min Mat Slots Evolved 4 | . . . . . 4 Power . | . . . . . . Propulsion 1 | . . . . . 1 Utility 3 | . . . . . 3 Weapon . | . . . . . . Parts Attached 34 | 7 3 5 . . 19 Power 4 | 1 1 . . . 2 Engine 3 | 1 1 . . . 1 Core 1 | . . . . . 1 Reactor . | . . . . . . Propulsion 13 | 2 . 2 . . 9 Treads 2 | . . 2 . . . Leg . | . . . . . . Wheel 2 | 2 . . . . . Hover . | . . . . . . Flight 9 | . . . . . 9 Utility 8 | 1 1 . . . 6 Device 1 | . . . . . 1 Storage 1 | 1 . . . . . Processor . | . . . . . . Hackware 3 | . 1 . . . 2 Protection 3 | . . . . . 3 Artifact . | . . . . . . Weapon 9 | 3 1 3 . . 2 Energy Gun 4 | 2 . 1 . . 1 Energy Cannon . | . . . . . . Ballistic Gun 1 | 1 . . . . . Ballistic Cannon 1 | . . 1 . . . Launcher 2 | . . 1 . . 1 Special Weapon . | . . . . . . Impact Weapon . | . . . . . . Slashing Weapon . | . . . . . . Piercing Weapon . | . . . . . . Special Melee Weapon 1 | . 1 . . . . Unidentified Prototypes 1 | . . . . . 1 Parts Lost 15 | . . 4 . 1 10 Power 3 | . . 1 . 1 1 Propulsion 5 | . . 2 . . 3 Utility 3 | . . . . . 3 Weapon 4 | . . 1 . . 3 Highest Loss Streak 6 | . . 4 . 1 6 To Critical Strikes . | . . . . . . Average Backups 6 | 1 7 6 7 7 4 Power . | . 1 . . . . Propulsion 1 | . 2 . . . . Utility 2 | . 1 4 4 4 1 Weapon 2 | . . 1 3 3 1 Tool/Special . | . . . . . . Unused Backups 7 | . 3 . . . 4 Power 3 | . 2 . . . 1 Propulsion 2 | . 1 . . . 1 Utility 2 | . . . . . 2 Weapon . | . . . . . . Tool/Special . | . . . . . . Average Slot Usage (%) 94 | . 95 94 100 96 78 Engine 11 | . 14 12 14 10 1 Treads 15 | . . 23 28 28 5 Wheel 9 | . 28 1 . . . Flight 2 | . . . . . 16 Storage 12 | . 14 14 14 14 2 Hackware 13 | . 9 14 14 14 21 Protection 1 | . . . . . 12 Energy Gun 12 | . 14 14 14 14 4 Ballistic Cannon 6 | . . 4 14 14 3 Launcher 1 | . . 8 . . 2 Special Melee Weapon 3 | . 11 . . . . Peak Build Rating 26 | 6 10 12 12 12 26 Average Rating 11 | 3 8 10 12 11 19 On Entrance 8 | . 6 10 12 12 11 Naked Turns . | . . . . . . Heaviest Build 16 | 14 13 16 16 16 15 Greatest Support 40 | 20 20 40 40 40 40 Greatest Overweight (x) 3 | . . 3 . . 1 Average Overweight (x) . | . . . . . . Largest Inventory Capacity 8 | 8 8 8 8 8 8 Average Capacity 7 | 6 8 8 8 8 5 Most Carried 8 | 3 8 8 7 7 8 Average Carried 6 | 1 7 6 7 7 4 Final Capacity 8 | 8 8 8 8 8 5 Final Carried 8 | 3 8 7 7 7 5 Class Distribution -------------------- 87% | Mutant 7% | Hacker-Mutant Dominant Class ---------------- Mutant | -10/Materials Mutant | -10/Mines Mutant | -10/Exiles Mutant | -9/Mines Hacker-Mutant | -8/Materials Resources | -11 -10 -10 -10 -9 -8 ----------- Run | Yrd Mat Min Exi Min Mat Matter Collected 698 | 230 97 . . 140 231 Remotely . | . . . . . . Salvage Created 911 | . 438 64 . 79 330 Parts 77 | . 34 3 . 4 36 Haulers Intercepted 1 | . . . . . 1 Recyclers Shooed . | . . . . . . Parts Field Recycled . | . . . . . . Retrieved Matter . | . . . . . . Parts Self-Destructed . | . . . . . . Prevented . | . . . . . . Kills | -11 -10 -10 -10 -9 -8 ------- Run | Yrd Mat Min Exi Min Mat Combat Hostiles Destroyed 31 | . 13 2 . 3 13 Guns 18 | . 13 . . . 5 Cannons 5 | . . . . 3 2 AOE 8 | . . 2 . . 6 Classes Destroyed 10 | . 4 . . 1 5 Worker 3 | . . . . . 3 Builder 2 | . . . . 1 1 Tunneler 1 | . . . . . 1 Hauler 1 | . . . . . 1 Recycler 1 | . . . . . 1 Operator 4 | . 3 . . . 1 Watcher 1 | . 1 . . . . Swarmer 15 | . 7 . . . 8 Grunt 14 | . 6 2 . 3 3 Sentry 2 | . . . . . 2 Best Kill Streak 5 | . 3 2 . 3 5 Combat Bots Only 4 | . 3 2 . 3 4 Max Kills in Single Turn 2 | . 1 1 . 1 2 Gunslinging . | . . . . . . Exploded 2 | . . 1 . . 2 Melee . | . . . . . . Uniques/NPCs Destroyed . | . . . . . . Combat | -11 -10 -10 -10 -9 -8 -------- Run | Yrd Mat Min Exi Min Mat Hostile Shots Fired 220 | . 41 22 . 41 116 Missed 79 | . 14 5 . 9 51 Hits 141 | . 27 17 . 32 65 Projectile 141 | . 27 17 . 32 65 Critical Strikes 2 | . . . . . 2 Damage Taken 1752 | . 256 247 . 351 898 Core 373 | . 59 107 . 56 151 Absorbed by Shields . | . . . . . . Redirected to Shielding 17 | . . . . . 17 Core Remaining (%) 55 | 100 . . . 11 . Volleys Fired 160 | . 97 12 . 9 42 Largest 2 | . 2 2 . 2 2 Hottest 98 | . 70 80 . 98 98 Shots Fired 220 | . 124 15 . 18 63 Gun 163 | . 124 11 . 9 19 Cannon 28 | . . . . 9 19 Launcher 29 | . . 4 . . 25 Special . | . . . . . . Kinetic 55 | . 27 . . 9 19 Thermal 136 | . 97 11 . 9 19 Explosive 29 | . . 4 . . 25 Electromagnetic . | . . . . . . Robot Hit Streak 9 | . 9 9 . 3 4 Robot Miss Streak 5 | . 5 2 . 2 5 Penetration Max . | . . . . . . Secondary Targets . | . . . . . . Shots Hit Robots 118 | . 78 9 . 11 20 Core Hits 78 | . 29 4 . 5 40 Critical Kills . | . . . . . . Critical Parts Destroyed 1 | . 1 . . . . Critical Strikes 8 | . 5 2 . . 1 Burn 7 | . 4 2 . . 1 Destroy 1 | . 1 . . . . Melee Attacks 7 | . 7 . . . . Impact . | . . . . . . Slashing . | . . . . . . Piercing . | . . . . . . Sneak Attacks 3 | . 3 . . . . Combat Hostiles . | . . . . . . Follow-up Attacks . | . . . . . . Damage Inflicted 2513 | . 864 211 . 235 1203 Guns 1244 | . 864 98 . 73 209 Cannons 368 | . . . . 155 213 Explosions 894 | . . 113 . . 781 Melee . | . . . . . . Ramming 7 | . . . . 7 . Kinetic 512 | . 144 . . 155 213 Thermal 1100 | . 720 98 . 73 209 Explosive 894 | . . 113 . . 781 Electromagnetic . | . . . . . . Impact . | . . . . . . Slashing . | . . . . . . Piercing . | . . . . . . Highest Corruption . | . . . . . . Average Corruption . | . . . . . . Corruption Purged . | . . . . . . Corruption Blocked . | . . . . . . Overload Shots . | . . . . . . Overflow Damage 20 | . . . . . 20 Projectiles . | . . . . . . Explosions 20 | . . . . . 20 Melee . | . . . . . . Knockbacks 5 | . . . . 4 1 Impact . | . . . . . . Kinetic 4 | . . . . 3 1 Secondary 1 | . . . . 1 . Self-Inflicted Damage 116 | . . 34 . . 82 Shots 6 | . . 2 . . 4 Rammed . | . . . . . . Targets Rammed 1 | . . . . 1 . Kicked . | . . . . . . Crushed 1 | . . . . 1 . Highest Temperature 342 | . 130 161 . 342 294 Average Temperature 66 | . 38 77 . 192 81 Received Heat Transfer 606 | . 69 120 . 192 225 Siege Activations . | . . . . . . Martial Activations . | . . . . . . Shielding Activations . | . . . . . . Robots Disrupted . | . . . . . . Combat Hostiles . | . . . . . . Robots Corrupted . | . . . . . . Combat Hostiles . | . . . . . . Parts Fried . | . . . . . . Impact Corruptions . | . . . . . . Robots Melted . | . . . . . . Combat Hostiles . | . . . . . . Parts Melted 5 | . 4 . . . 1 Heat Transferred 3626 | . 2442 444 . 185 555 Parts Sabotaged . | . . . . . . Parts Stolen . | . . . . . . Parts Stripped . | . . . . . . Power Chain Reactions . | . . . . . . Alert | -11 -10 -10 -10 -9 -8 ------- Run | Yrd Mat Min Exi Min Mat Maximum Alert Level 1 | . . . . . 1 Low Security (%) 95 | 100 100 100 . 100 70 Level 1 4 | . . . . . 29 Level 2 . | . . . . . . Level 3 . | . . . . . . Level 4 . | . . . . . . Level 5 . | . . . . . . High Security . | . . . . . . Max Security . | . . . . . . Peak Influence 284 | . 87 56 . 70 284 Initial . | . . . . . . Average 36 | . 28 9 . 8 137 Influence Increases 1030 | . 354 64 . 83 529 Destroy 0b10 Robot/C 620 | . 260 40 . 60 260 Destroy 0b10 Robot/NC 65 | . 20 . . 5 40 Destroy Leader 124 | . 52 10 . 10 52 Successful Hack 39 | . 22 . . 7 10 Disable Machine 45 | . . . . . 45 Destroy Structure 92 | . . 14 . 1 77 Partial Spotted 15 | . . . . . 15 Lose Combat Pursuer 30 | . . . . . 30 Influence Decreases 787 | . 354 64 . 83 286 Time Decay 687 | . 354 64 . 83 186 Lost Part 100 | . . . . . 100 Squads Dispatched 10 | . 3 . . 1 6 Investigation 3 | . . . . 1 2 Extermination . | . . . . . . Reinforcement 7 | . 3 . . . 4 Assault . | . . . . . . Garrison . | . . . . . . Intercept . | . . . . . . Searches Triggered . | . . . . . . Construction Impeded . | . . . . . . Haulers Reinforced . | . . . . . . Active Scanning Responses . | . . . . . . Cargo Convoy Interrupts . | . . . . . . Stealth | -11 -10 -10 -10 -9 -8 --------- Run | Yrd Mat Min Exi Min Mat Distress Signals 4 | . 2 . . . 2 Communications Jammed . | . . . . . . Distress Signals . | . . . . . . Times Spotted 71 | . 39 2 . 3 27 Peak Tracking Total 7 | . 4 2 . 3 7 Tactical Retreats 2 | . . . . . 2 Traps | -11 -10 -10 -10 -9 -8 ------- Run | Yrd Mat Min Exi Min Mat Traps Triggered . | . . . . . . Indirectly . | . . . . . . Trap Hack Attempts . | . . . . . . Triggered . | . . . . . . Disarmed . | . . . . . . Reprogrammed . | . . . . . . Reused . | . . . . . . Traps Extracted . | . . . . . . Installed . | . . . . . . Triggered . | . . . . . . Machines | -11 -10 -10 -10 -9 -8 ---------- Run | Yrd Mat Min Exi Min Mat Machines Disabled 3 | . . . . . 3 Max in Single Turn 1 | . . . . . 1 Machines Repaired . | . . . . . . Machines Dismantled . | . . . . . . Machines Sabotaged . | . . . . . . Overloaded Fab Kills . | . . . . . . Hacking | -11 -10 -10 -10 -9 -8 --------- Run | Yrd Mat Min Exi Min Mat Machines Accessed 6 | . 2 . . 1 3 Terminals 6 | . 2 . . 1 3 Fabricators . | . . . . . . Repair Stations . | . . . . . . Recycling Units . | . . . . . . Scanalyzers . | . . . . . . Garrison Access . | . . . . . . Total Hacks 25 | . 8 . . 3 14 Successful 16 | . 5 . . 1 10 Failed 9 | . 3 . . 2 4 Catastrophic 2 | . . . . 1 1 Database Lockouts . | . . . . . . Manual 21 | . 8 . . 3 10 Terminals 25 | . 8 . . 3 14 Fabricators . | . . . . . . Repair Stations . | . . . . . . Recycling Units . | . . . . . . Scanalyzers . | . . . . . . Garrison Access . | . . . . . . Terminal Hacks 10 | . 3 . . 1 6 Branch Access Points 3 | . 2 . . 1 . Terminal Index 1 | . . . . . 1 Dispatch Records 1 | . . . . . 1 Hauler Manifests 2 | . 1 . . . 1 Registered Components 1 | . . . . . 1 Zone Layout 2 | . . . . . 2 Fabricator Hacks . | . . . . . . Repair Station Hacks . | . . . . . . Recycling Unit Hacks . | . . . . . . Scanalyzer . | . . . . . . Garrison Access Hacks . | . . . . . . Unauthorized Hacks 6 | . 2 . . . 4 Terminals 6 | . 2 . . . 4 Track 1 | . . . . . 1 Botnet 3 | . 1 . . . 2 Operators 2 | . 1 . . . 1 Fabricators . | . . . . . . Repair Stations . | . . . . . . Recycling Units . | . . . . . . Scanalyzers . | . . . . . . Garrison Access . | . . . . . . Data Cores Recovered 1 | . 1 . . . . Used . | . . . . . . Hacking Detections 5 | . 2 . . 1 2 Full Trace Events 5 | . 2 . . 1 2 Feedback Events . | . . . . . . Feedback Blocked . | . . . . . . Robot Schematics Acquired . | . . . . . . Robots Built . | . . . . . . Authchips . | . . . . . . Time . | . . . . . . Total Robot Build Rating . | . . . . . . Part Schematics Acquired . | . . . . . . Parts Built . | . . . . . . Authchips . | . . . . . . Time . | . . . . . . Total Part Build Rating . | . . . . . . Parts Repaired . | . . . . . . Time . | . . . . . . Parts Recycled . | . . . . . . Recycled Matter . | . . . . . . Retrieved Matter . | . . . . . . Retrieved Components . | . . . . . . Parts Scanalyzed . | . . . . . . Part Schematics Acquired . | . . . . . . Parts Damaged . | . . . . . . Bothacking | -11 -10 -10 -10 -9 -8 ------------ Run | Yrd Mat Min Exi Min Mat Used RIF Installer . | . . . . . . Robots Hacked 2 | . 2 . . . . Non-combat 2 | . 2 . . . . Combat . | . . . . . . Robot Hacks Applied 3 | . 3 . . . . parse_system 2 | . 2 . . . . no_distress 1 | . 1 . . . . Relay Couplers Released . | . . . . . . Fabnet Peak Effective % . | . . . . . . Robots Rewired . | . . . . . . Allies Hacked . | . . . . . . Hacks Repelled . | . . . . . . Allies | -11 -10 -10 -10 -9 -8 -------- Run | Yrd Mat Min Exi Min Mat Total Allies . | . . . . . . Largest Group . | . . . . . . Highest-Rated Group . | . . . . . . Highest-Rated Ally . | . . . . . . Total Orders . | . . . . . . Ally Attacks . | . . . . . . Total Damage . | . . . . . . Kills . | . . . . . . Allies Corrupted . | . . . . . . Allies Melted . | . . . . . . Intel | -11 -10 -10 -10 -9 -8 ------- Run | Yrd Mat Min Exi Min Mat Active Infowar (turns) 214 | . . . . . 214 Sensors 214 | . . . . . 214 Robot Analysis Total . | . . . . . . Derelict Logs Recovered . | . . . . . . Drone Launches . | . . . . . . Drone Recoveries . | . . . . . . Exploration | -11 -10 -10 -10 -9 -8 ------------- Run | Yrd Mat Min Exi Min Mat Turns Passed 3295 | 82 1070 362 591 766 424 Spaces Moved 2583 | 91 970 201 370 459 492 Core 28 | 15 . 13 . . . Treads 1067 | . . 188 370 459 50 Legs . | . . . . . . Wheels 1046 | 76 970 . . . . Hover . | . . . . . . Flight 442 | . . . . . 442 Fastest Speed 20 | 50 80 160 160 160 20 Average Speed 105 | 75 80 162 160 160 48 Slowest Speed 200 | 80 80 200 160 160 160 Overloaded Moves 15 | . . . . . 15 Propulsion Burnouts . | . . . . . . Robots Hopped 10 | . . . . . 10 Potential Cave-ins . | . . . . . . Cave-ins Triggered . | . . . . . . Exploration Rate (%) 52 | 3 77 43 72 79 42 Regions Visited 5 Branch Regions 3 Pre-discovered Areas . | . . . . . . Known Exits Taken 1 | . 1 . . . . Unknown Exits Taken 4 | 1 . 1 1 1 . Scrap Searched 2 | . . . . 2 . Spaces Dug . | . . . . . . Terrain Destroyed 108 | . . 19 . 1 88 Melee . | . . . . . . Projectile 5 | . . . . 1 4 AOE 103 | . . 19 . . 84 Terrain Rammed . | . . . . . . Walls Destroyed . | . . . . . . Machines Disabled . | . . . . . . Actions | -11 -10 -10 -10 -9 -8 --------- Run | Yrd Mat Min Exi Min Mat Total 2909 | 100 1142 221 369 472 605 Wait 98 | . 54 . . 4 40 Move 2559 | 90 969 200 369 458 473 Hop 9 | . . . . . 9 Pick Up 20 | 3 9 2 . . 6 Fast Attach 15 | 6 . . . . 9 Attach 16 | . 1 5 . . 10 Detach 6 | . . 1 . . 5 Swap 7 | 1 2 1 . . 3 Drop 11 | . 3 . . . 8 Fire 160 | . 97 12 . 9 42 Melee 7 | . 7 . . . . Ram . | . . . . . . Kick . | . . . . . . Crush 1 | . . . . 1 . Escape Stasis . | . . . . . . Rewire . | . . . . . . Trap . | . . . . . . Miscellaneous . | . . . . . . Route ------- -11/Scrapyard -10/Materials (discovered 4 exits: [*Mat x3] / *Min) -10/Mines (discovered 3 exits: [*Mat] / [*Exi] / [*Sub]) -10/Exiles -9/Mines -8/Materials History --------- Turn | Location | Event 2 | -11/Scrapyard | Met Revision 17 20 | -11/Scrapyard | Discovered new exit (range 16) 83 | -11/Scrapyard | Entered Materials 259 | -10/Materials | Discovered new exit (range 14) 306 | -10/Materials | Build established: Mutant 392 | -10/Materials | Identified exit to Mines 702 | -10/Materials | Discovered new exit (range 13) 750 | -10/Materials | Discovered new exit (range 11) 1052 | -10/Materials | Discovered new exit (range 5) 1153 | -10/Materials | Entered Mines 1172 | -10/Mines | Core integrity fell below 50% 1206 | -10/Mines | Lost 4 parts (1p2n1w) 1229 | -10/Mines | A weapon hastily lodged in a ceiling crevice suddenly fell to the ground 1270 | -10/Mines | Discovered new exit (range 14) 1291 | -10/Mines | Discovered new exit (range 10) 1396 | -10/Mines | YI-UF0 nonchalantly dropped a Grenade Launcher on the ground 1503 | -10/Mines | Deemed a non-threat by the Exiles lab entrance 1505 | -10/Mines | Discovered new exit (range 5) 1515 | -10/Mines | Entered Exiles 1515 | -10/Exiles | Found Exiles lab abandoned 2077 | -10/Exiles | Discovered new exit (range 12) 2106 | -10/Exiles | Entered Mines 2484 | -9/Mines | Found a hidden stash of uninstalled traps 2683 | -9/Mines | Core integrity fell below 20% 2846 | -9/Mines | Discovered new exit (range 12) 2872 | -9/Mines | Entered Materials 2872 | -8/Materials | Evolved 4 slots: Propulsion x1, Utility x3 3086 | -8/Materials | Lost 6 parts (1p2n1u2w) 3296 | -8/Materials | Self-destructed Last Messages --------------- 03198_ The unstable cave ceiling collapses. 03198_ O-16 Technician sends out distress signal. 03205_ G-47 Trooper destroyed. 03206_ ALERT: Hostiles spotted, dispatching reinforcements to Terminal M012. 03211_ Acquired Surge Thruster. 03215_ Acquired Imp. Light Armor Plating. 03217_ Dropped Lgt. Armor Plating. 03217_ Acquired Imp. Light Armor Plating. 03219_ Dropped Flight Unit. 03220_ Dropped Lgt. Treads. 03221_ ALERT: Hostiles spotted, dispatching reinforcements to Terminal M006. 03223_ U-05 Engineer lays Concrete. [Achievement: Can't Catch Me] 03247_ Dropped Imp. Flight Unit. 03247_ Acquired Cesium-ion Thruster. 03257_ Acquired Spread Laser. 03296_ Slug penetrates Wall. 03296_ Imp. Sensor Array destroyed. Map ----- +----------------------------------------------------+ | ???????????????????????????????????# #????????# | | ???????????????????????????????????# #????????### | | ???????????????????????????????????# #??????????# | | ???????????????????????????????????# #?########## | | ???????????????????????????????????# #?# T # | | ???????????????????????###+#?????### ### """ # | | ???????????????????????# ##### # [ """ # | | ???????????????????????# [ # """ # | | ??????????????????o??? T ! = / # | | ???????????????????????# # #? | | ???????????????????????# ##### # % #? | | ???????????????????????############ ## #? | | ???????????????????????????# # ##! #? | | ????????????????????????????? """ " ###### ####? | | ????????????????????????????? """ # #?????##???? | | ????????????????????????????? """ # #??????????? | | ????????????????????????????? ?# #??????????? | | ????????????????????????????? ! ?# o#??????????? | | ????????????????????????????####??#? #?????????#? | | ?????????????????????############## #??????? #? | | ?????????????????????# ## ##???? # | | ?????????????????????# # u#?? / | | ?????????????????????# # # #? | | ?????????????????????# Y " + / #? | | ?????????????????????# # # #? | | ?????????????????????# @ # ! #?? #? | | ??????????????????##?# ###?###????#####? | | ?????????????????## #####+########? ??????????? | | ?????????????????# # #??????? #####?????????? | | ?????????????????# #?######## #?????????????? | | ?????????????????# + #?????????????? | | ?????????????????# [[[ ############?????????????? | | ?????????????????# [[[ #????????????????????????? | | ?????????????????#[ [[[ #????????????????????????? | | ?????????????????########????????????????????????? | | | | | | | | | | | | | | | | | | | | | | | | | | | | | | | +----------------------------------------------------+ Best States ------------- Heat Dissipation 31 Energy Generation 14 Energy Capacity 250 Matter Stores 300 Matter Capacity 300 Sight Range 16 Robot Scan Range 15 Terrain Scan Density 10 Armor Coverage 150 Utility Shielding 33 Evasion (%) 64 Recoil Reduction 2 Offensive Hacking 30 Item Schematics ----------------- None Robot Schematics ------------------ None Fabricated ------------ Nothing Repaired ---------- Nothing Alien Tech Used ----------------- None Achievements -------------- Can't Catch Me Challenges ------------ None Game ------ Seed ChargeRainbowMiniperforator Manual? 0 Play Time 00:24:48 Cumulative 15.6 hours Start 2025.10.06 @ 18:39:42 End 2025.10.06 @ 19:02:40 Sessions 1 Manual Loads 0 Difficulty Rogue Special Mode None Game No. 44 Rogue 37 Adventurer 7 Explorer 0 Win Type - Total 0 Types 0/0/0/0/0/0/0/0/0/0 Lore% 3 Gallery% 17 Achievement% 17 Wizard Run 0 Options --------- Layout 1 ASCII 0 Keyboard 1 Movement Vi Keybinds 0 Fullscreen 1 Font 24/Smallcaps Map View 76x35 Zoom Use 0% Tactical HUD 1 Map Filters NONE Filters NONE Steam 1 RUN: 7801307e-652c-4a42-b441-9f961740de02